Cogmind - Beta 16 @@@ ROGUE MODE // 2025.12.04 @ 00:19:58 Player: parasect Result: Self-destructed Performance ------------- Evolutions (1) 500 Regions Visited (3) 600 Robots Destroyed (28) 140 Value Destroyed (635) 635 Prototype IDs (2) 40 Alien Tech Used (0) 0 Bonus (0) 0 TOTAL SCORE: 1915 Bonus ------- None Cogmind --------- Core Integrity 296/400 Matter 300/300 Energy 250/250 System Corruption 0% Temperature Cool (0) Movement Treading (160) Location -9/Materials Parts ------- > --- POWER (1) -------- Ion Engine > --- PROPULSION (3) --- Light Treads Light Treads Light Treads > --- UTILITY (3) ------ Small Storage Unit Signal Interpreter > --- WEAPON (2) ------- Medium Laser Grenade Launcher > --- INVENTORY (8) ---- Improved Ion Engine Heavy Ion Engine Light Treads Light Treads Light Treads Aluminum Leg Huge Storage Unit ECM Suite Peak State ------------ > --- POWER ------------ Ion Engine > --- PROPULSION ------- Light Treads Light Treads Light Treads > --- UTILITY ---------- Small Storage Unit Signal Interpreter > --- WEAPON ----------- Medium Laser Grenade Launcher > --- INVENTORY -------- Improved Ion Engine Heavy Ion Engine Light Treads Light Treads Aluminum Leg Huge Storage Unit ECM Suite [Rating: 9] Favorites ----------- Power Light Ion Engine Engine Light Ion Engine Propulsion Light Treads Treads Light Treads Leg Aluminum Leg Utility Small Storage Unit Device Seismic Detector Storage Small Storage Unit Processor Targeting Computer Weapon Light Assault Rifle Energy Gun Medium Laser Ballistic Gun Light Assault Rifle Launcher Grenade Launcher Build | -11 -10 -10 -9 ------- Run | Yrd Mat Min Mat Slots Evolved 2 | . . . 2 Power . | . . . . Propulsion 1 | . . . 1 Utility 1 | . . . 1 Weapon . | . . . . Parts Attached 27 | 7 14 . 6 Power 5 | 2 2 . 1 Engine 5 | 2 2 . 1 Core . | . . . . Reactor . | . . . . Propulsion 11 | 2 7 . 2 Treads 4 | . 2 . 2 Leg 7 | 2 5 . . Wheel . | . . . . Hover . | . . . . Flight . | . . . . Utility 5 | 1 3 . 1 Device 1 | . 1 . . Storage 2 | 1 1 . . Processor 2 | . 1 . 1 Hackware . | . . . . Protection . | . . . . Artifact . | . . . . Weapon 6 | 2 2 . 2 Energy Gun 4 | 2 1 . 1 Energy Cannon . | . . . . Ballistic Gun 1 | . 1 . . Ballistic Cannon . | . . . . Launcher 1 | . . . 1 Special Weapon . | . . . . Impact Weapon . | . . . . Slashing Weapon . | . . . . Piercing Weapon . | . . . . Special Melee Weapon . | . . . . Unidentified Prototypes . | . . . . Parts Lost 6 | . 3 . 3 Power 2 | . 1 . 1 Propulsion 1 | . . . 1 Utility 1 | . 1 . . Weapon 2 | . 1 . 1 Highest Loss Streak 2 | . 2 . 1 To Critical Strikes . | . . . . Average Backups 6 | 2 7 8 7 Power . | . 1 1 1 Propulsion 2 | 1 3 2 2 Utility 1 | . 1 2 2 Weapon 1 | . 1 3 1 Tool/Special . | . . . . Unused Backups 3 | . 1 . 2 Power . | . . . . Propulsion 1 | . . . 1 Utility 2 | . 1 . 1 Weapon . | . . . . Tool/Special . | . . . . Average Slot Usage (%) 86 | . 90 85 76 Engine 12 | . 13 14 10 Treads 14 | . 15 . 14 Leg 13 | . 12 28 12 Device 2 | . 2 . . Storage 13 | . 14 14 11 Processor 4 | . 3 . 7 Energy Gun 15 | . 16 14 11 Ballistic Gun 9 | . 10 14 7 Peak Build Rating 9 | 6 7 6 9 Average Rating 6 | 4 6 6 7 On Entrance 4 | . 6 6 6 Avg Prop Armor Cover (%) . | . . . . Naked Turns . | . . . . Heaviest Build 15 | 11 12 11 15 Greatest Support 60 | 20 40 20 60 Greatest Overweight (x) 1 | 1 . . 1 Average Overweight (x) . | . . . . Largest Inventory Capacity 25 | 8 25 8 25 Average Capacity 8 | 7 8 8 8 Most Carried 9 | 4 9 8 8 Average Carried 6 | 2 7 8 7 Final Capacity 8 | 8 8 8 8 Final Carried 8 | 4 8 8 8 Class Distribution -------------------- 77% | Mutant 22% | Scavenger-Mutant Dominant Class ---------------- Mutant | -10/Materials Scavenger-Mutant | -10/Mines Mutant | -9/Materials Resources | -11 -10 -10 -9 ----------- Run | Yrd Mat Min Mat Matter Collected 647 | 270 216 . 161 Remotely . | . . . . Salvage Created 891 | 85 488 . 318 Parts 47 | 5 21 . 21 Haulers Intercepted 1 | . . . 1 Recyclers Shooed 1 | . 1 . . Parts Field Recycled . | . . . . Retrieved Matter . | . . . . Parts Self-Destructed . | . . . . Prevented . | . . . . Parts Restored . | . . . . Kills | -11 -10 -10 -9 ------- Run | Yrd Mat Min Mat Combat Hostiles Destroyed 19 | . 10 . 9 Guns 19 | . 10 . 9 Classes Destroyed 9 | 2 3 . 4 Worker 1 | . . . 1 Builder 1 | . . . 1 Tunneler 1 | 1 . . . Hauler 1 | . . . 1 Recycler 2 | 1 1 . . Watcher 3 | . 2 . 1 Swarmer 6 | . 3 . 3 Grunt 11 | . 7 . 4 Sentry 2 | . . . 2 Best Kill Streak 5 | 1 5 . 5 Combat Bots Only 4 | . 4 . 2 Max Kills in Single Turn 2 | 1 1 . 2 Gunslinging . | . . . . Exploded . | . . . . Melee . | . . . . Uniques/NPCs Destroyed . | . . . . Combat | -11 -10 -10 -9 -------- Run | Yrd Mat Min Mat Hostile Shots Fired 161 | . 71 . 90 Missed 46 | . 14 . 32 Hits 115 | . 57 . 58 Projectile 115 | . 57 . 58 Critical Strikes 1 | . . . 1 Damage Taken 1295 | . 615 . 680 Core 230 | . 126 . 104 Absorbed by Shields . | . . . . Core Remaining (%) 74 | 100 . 49 . Volleys Fired 114 | 6 64 . 44 Largest 2 | 2 2 . 2 Hottest 80 | 80 80 . 80 Shots Fired 198 | 8 115 . 75 Gun 195 | 8 115 . 72 Cannon . | . . . . Launcher 3 | . . . 3 Special . | . . . . Kinetic 50 | . 21 . 29 Thermal 145 | 8 94 . 43 Explosive 3 | . . . 3 Electromagnetic . | . . . . Robot Hit Streak 11 | 6 11 . 7 Robot Miss Streak 7 | . 4 . 7 Penetration Max . | . . . . Secondary Targets 2 | . 1 . 1 Max Gunslinging Chain 1 | . 1 . 1 Shots Hit Robots 120 | 6 75 . 39 Core Hits 52 | 3 26 . 23 Critical Kills . | . . . . Critical Parts Destroyed . | . . . . Critical Strikes 4 | . 2 . 2 Burn 4 | . 2 . 2 Melee Attacks . | . . . . Impact . | . . . . Slashing . | . . . . Piercing . | . . . . Sneak Attacks . | . . . . Combat Hostiles . | . . . . Follow-up Attacks . | . . . . Damage Inflicted 1661 | 65 855 . 741 Guns 1359 | 65 855 . 439 Cannons . | . . . . Explosions 288 | . . . 288 Melee . | . . . . Ramming 14 | . . . 14 Kinetic 228 | . 115 . 113 Thermal 1131 | 65 740 . 326 Explosive 288 | . . . 288 Electromagnetic . | . . . . Impact . | . . . . Slashing . | . . . . Piercing . | . . . . Highest Corruption . | . . . . Average Corruption . | . . . . Corruption Purged . | . . . . Corruption Blocked . | . . . . Overload Shots . | . . . . Overflow Damage . | . . . . Projectiles . | . . . . Explosions . | . . . . Melee . | . . . . Knockbacks . | . . . . Impact . | . . . . Kinetic . | . . . . Secondary . | . . . . Self-Inflicted Damage . | . . . . Shots . | . . . . Rammed 3 | . . . 3 Targets Rammed 4 | . . . 4 Kicked 1 | . . . 1 Crushed . | . . . . Highest Temperature 369 | 36 369 . 103 Average Temperature 87 | 20 116 . 40 Received Heat Transfer 522 | . 270 . 252 Effects 2 | . 2 . . Energy Bleed 1 | . 1 . . Matter Decay 1 | . 1 . . Siege Activations . | . . . . Martial Activations . | . . . . Shielding Activations . | . . . . Robots Disrupted . | . . . . Combat Hostiles . | . . . . Robots Corrupted . | . . . . Combat Hostiles . | . . . . Parts Fried . | . . . . Impact Corruptions . | . . . . Robots Melted . | . . . . Combat Hostiles . | . . . . Parts Melted 8 | 1 3 . 4 Heat Transferred 3128 | 150 1905 . 1073 Parts Sabotaged . | . . . . Parts Stolen . | . . . . Parts Stripped . | . . . . Power Chain Reactions . | . . . . Alert | -11 -10 -10 -9 ------- Run | Yrd Mat Min Mat Maximum Alert Level . | . . . . Low Security (%) 100 | 100 100 100 100 Level 1 . | . . . . Level 2 . | . . . . Level 3 . | . . . . Level 4 . | . . . . Level 5 . | . . . . High Security . | . . . . Max Security . | . . . . Peak Influence 161 | 5 147 . 161 Initial . | . . . . Average 38 | 1 36 . 64 Influence Increases 616 | 10 315 . 291 Destroy 0b10 Robot/C 380 | . 200 . 180 Destroy 0b10 Robot/NC 45 | 10 15 . 20 Destroy Leader 78 | . 44 . 34 Successful Hack 11 | . 11 . . Disable Machine 15 | . . . 15 Destroy Structure 12 | . . . 12 Lose Combat Pursuer 75 | . 45 . 30 Influence Decreases 475 | 10 315 . 150 Time Decay 425 | 10 285 . 130 Lost Part 50 | . 30 . 20 Squads Dispatched 2 | . 2 . . Investigation 2 | . 2 . . Extermination . | . . . . Reinforcement . | . . . . Assault . | . . . . Garrison . | . . . . Intercept . | . . . . Searches Triggered . | . . . . Construction Impeded . | . . . . Haulers Reinforced . | . . . . Active Scanning Responses . | . . . . Cargo Convoy Interrupts . | . . . . Stealth | -11 -10 -10 -9 --------- Run | Yrd Mat Min Mat Distress Signals 4 | . 2 . 2 Communications Jammed . | . . . . Distress Signals . | . . . . Times Spotted 37 | . 21 . 16 Peak Tracking Total 7 | . 6 . 7 Tactical Retreats 4 | . 2 . 2 Traps | -11 -10 -10 -9 ------- Run | Yrd Mat Min Mat Traps Triggered 2 | . 2 . . Indirectly . | . . . . Trap Hack Attempts . | . . . . Triggered . | . . . . Disarmed . | . . . . Reprogrammed . | . . . . Reused . | . . . . Traps Extracted . | . . . . Installed . | . . . . Triggered . | . . . . Machines | -11 -10 -10 -9 ---------- Run | Yrd Mat Min Mat Machines Disabled 1 | . . . 1 Max in Single Turn 1 | . . . 1 Machines Repaired . | . . . . Machines Dismantled . | . . . . Machines Sabotaged . | . . . . Overloaded Fab Kills . | . . . . Hacking | -11 -10 -10 -9 --------- Run | Yrd Mat Min Mat Machines Accessed 7 | . 7 . . Terminals 6 | . 6 . . Fabricators . | . . . . Repair Stations . | . . . . Recycling Units 1 | . 1 . . Scanalyzers . | . . . . Garrison Access . | . . . . Total Hacks 19 | . 19 . . Successful 5 | . 5 . . Failed 13 | . 13 . . Catastrophic 2 | . 2 . . Database Lockouts 1 | . 1 . . Manual 18 | . 18 . . Terminals 18 | . 18 . . Fabricators . | . . . . Repair Stations . | . . . . Recycling Units 1 | . 1 . . Scanalyzers . | . . . . Garrison Access . | . . . . Terminal Hacks 3 | . 3 . . Robot Analysis 1 | . 1 . . Prototype ID Bank 1 | . 1 . . Hauler Manifests 1 | . 1 . . Fabricator Hacks . | . . . . Repair Station Hacks . | . . . . Recycling Unit Hacks 1 | . 1 . . Retrieve Components 1 | . 1 . . Scanalyzer . | . . . . Garrison Access Hacks . | . . . . Unauthorized Hacks 1 | . 1 . . Terminals 1 | . 1 . . Operators 1 | . 1 . . Fabricators . | . . . . Repair Stations . | . . . . Recycling Units . | . . . . Scanalyzers . | . . . . Garrison Access . | . . . . Data Cores Recovered . | . . . . Used . | . . . . Hacking Detections 7 | . 7 . . Full Trace Events . | . . . . Feedback Events . | . . . . Feedback Blocked . | . . . . Robot Schematics Acquired . | . . . . Robots Built . | . . . . Authchips . | . . . . Time . | . . . . Total Robot Build Rating . | . . . . Part Schematics Acquired . | . . . . Parts Built . | . . . . Authchips . | . . . . Time . | . . . . Total Part Build Rating . | . . . . Part Studies Acquired . | . . . . Parts Repaired . | . . . . Time . | . . . . Parts Recycled . | . . . . Recycled Matter . | . . . . Retrieved Matter . | . . . . Retrieved Components 4 | . 4 . . Parts Scanalyzed . | . . . . Part Schematics Acquired . | . . . . Parts Damaged . | . . . . Bothacking | -11 -10 -10 -9 ------------ Run | Yrd Mat Min Mat Used RIF Installer . | . . . . Robots Hacked . | . . . . Non-combat . | . . . . Combat . | . . . . Robot Hacks Applied . | . . . . Relay Couplers Released . | . . . . Fabnet Peak Effective % . | . . . . Robots Rewired . | . . . . Allies Hacked . | . . . . Hacks Repelled . | . . . . Allies | -11 -10 -10 -9 -------- Run | Yrd Mat Min Mat Total Allies . | . . . . Largest Group . | . . . . Highest-Rated Group . | . . . . Highest-Rated Ally . | . . . . Total Orders . | . . . . Ally Attacks . | . . . . Total Damage . | . . . . Kills . | . . . . Allies Corrupted . | . . . . Allies Melted . | . . . . Intel | -11 -10 -10 -9 ------- Run | Yrd Mat Min Mat Active Infowar (turns) 200 | . 200 . . Seismic 200 | . 200 . . Robot Analysis Total 1 | . 1 . . Derelict Logs Recovered 1 | . . 1 . Drone Launches . | . . . . Drone Recoveries . | . . . . Exploration | -11 -10 -10 -9 ------------- Run | Yrd Mat Min Mat Turns Passed 1404 | 85 950 58 311 Spaces Moved 692 | 49 495 45 103 Core 4 | 4 . . . Treads 315 | . 275 . 40 Legs 373 | 45 220 45 63 Wheels . | . . . . Hover . | . . . . Flight . | . . . . Fastest Speed 50 | 50 120 120 120 Average Speed 137 | 115 142 120 136 Slowest Speed 190 | 120 160 120 190 Overloaded Moves . | . . . . Propulsion Burnouts . | . . . . Robots Hopped . | . . . . Potential Cave-ins . | . . . . Cave-ins Triggered . | . . . . Exploration Rate (%) 28 | 3 73 24 12 Regions Visited 3 Branch Regions 1 Pre-discovered Areas 1 | . . 1 . Known Exits Taken . | . . . . Unknown Exits Taken 3 | 1 1 1 . Scrap Searched . | . . . . Spaces Dug . | . . . . Terrain Destroyed 11 | . . . 11 Melee . | . . . . Projectile . | . . . . AOE 11 | . . . 11 Terrain Rammed . | . . . . Walls Destroyed . | . . . . Machines Disabled . | . . . . Actions | -11 -10 -10 -9 --------- Run | Yrd Mat Min Mat Total 954 | 68 634 49 203 Wait 74 | . 36 5 33 Move 689 | 48 494 44 103 Hop . | . . . . Pick Up 20 | 6 9 . 5 Fast Attach 11 | 4 4 . 3 Attach 15 | 3 7 . 5 Detach 8 | 1 5 . 2 Swap 6 | . 5 . 1 Drop 13 | . 10 . 3 Fire 114 | 6 64 . 44 Melee . | . . . . Ram . | . . . . Kick 1 | . . . 1 Crush 3 | . . . 3 Escape Stasis . | . . . . Rewire . | . . . . Trap . | . . . . Miscellaneous . | . . . . Route ------- -11/Scrapyard -10/Materials (discovered 3 exits: [*Mat x2] / [*Min]) -10/Mines -9/Materials History --------- Turn | Location | Event 15 | -11/Scrapyard | Discovered new exit (range 15) 86 | -11/Scrapyard | Entered Materials 400 | -10/Materials | Central database locked down 513 | -10/Materials | Discovered new exit (range 11) 637 | -10/Materials | Build established: Mutant 689 | -10/Materials | Discovered new exit (range 16) 775 | -10/Materials | Core integrity fell below 50% 965 | -10/Materials | Discovered new exit (range 11) 1036 | -10/Materials | Entered Mines 1075 | -10/Mines | Received a Rocket Launcher from a helpful Derelict 1088 | -10/Mines | Discovered new exit (range 6) 1091 | -10/Mines | Learned location of Zion (-6) 1094 | -10/Mines | Entered Materials 1094 | -9/Materials | Evolved 2 slots: Propulsion x1, Utility x1 1405 | -9/Materials | Self-destructed Last Messages --------------- U-05 Engineer builds a Wall. Acquired 19 matter. U-05 Engineer lays Concrete. K-01 Serf collects debris. Acquired 16 matter. K-01 Serf collects debris. U-05 Engineer builds a Wall. U-05 Engineer lays Concrete. K-01 Serf collects debris. U-05 Engineer lays Concrete. K-01 Serf collects debris. U-05 Engineer lays Concrete. U-05 Engineer builds a Door. U-05 Engineer lays Concrete. K-01 Serf collects debris. Acquired Prototype Engine. Acquired Lgt. Treads. K-01 Serf collects debris. Acquired 5 matter. Critical hit (Burn: +37). Map ----- +----------------------------------------------------+ | ??????????????????????????????????????????? ?????? | | ??????????????????????????????????????????? ?????? | | ??????????????????????????????????????????? ?????? | | ??????????????????????????????????????????? ?????? | | ??????????????????????????????????????????? ?????? | | ??????????????????????????????????????????? ?????? | | ??????????????????????????????????????????? ?????? | | ??????????????????????????????????????????# #????? | | ??????????????????????????????????????????# #????? | | ??????????????????????????????????????????# #????? | | ??????????????????????????????????????????# #????? | | ???????????#??????????????????????????????# #????? | | ?????????# ? ????????????????????????????# #????? | | ????????? ????????????????????????????# #????? | | ????????? ????????????????????#######?# #????? | | ????????? ????????????????????# ### ####?? | | ?????????? ????????????????????# #?? | | ??????????# #???????????????????# #?? | | ??????????# #???????????????????# #?? | | ?????#????# #############???????# ########?? | | ?????# ???# Y ????????## ########??? | | ????? ??# ############ # #??? | | ??=?? """ # u" g [! # # # #??? | | ??? ? """ # " [! # """ # + """ #??? | | ?? """ / Y " =! # /// """ # # """ #??? | | ??" " #u /@ /// """ # # """ #??? | | ???T" # # /// a # %# #??? | | ????? / # % ! # = # ########??? | | ?????? # ###################### #?????????? | | ???????# ## #???????????# # #?????????? | | ???????# ##???????????# + #?????????? | | ???????# #????????????# % % # #?????????? | | ???????# #????????????##+###### #?????????? | | ??###### ! ####??????????#%#???## ##????????? | | = #?????????## ##### #????????? | | ###########% #????????? | | % % %%%% #????????? | | ####### ##################% #????????? | | ??????# ?????????????????######## #????????? | | ??????# ????????????????????????#######????????? | | ??????# ???????????????????????????????????????? | | ?????? ????????????????????????????????????????? | | ????? ????????????????????????????????????????? | | ???? ????????????????????????????????????????? | | ???? ??????????????????????????????????????????? | | ???###???????????????????????????????????????????? | | ?????????????????????????????????????????????????? | | ?????????????????????????????????????????????????? | | ?????????????????????????????????????????????????? | | ?????????????????????????????????????????????????? | +----------------------------------------------------+ Best States ------------- Heat Dissipation 28 Energy Generation 10 Energy Capacity 250 Matter Stores 300 Matter Capacity 300 Sight Range 16 Terrain Scan Density 10 Evasion (%) 55 Targeting Accuracy 5 Recoil Reduction 3 Item Schematics ----------------- None Robot Schematics ------------------ None Fabricated ------------ Nothing Repaired ---------- Nothing Studied --------- None Alien Tech Used ----------------- None Achievements -------------- None Challenges ------------ None Game ------ Seed SiegeAntigravCycler Manual? 0 Play Time 00:17:14 Cumulative 12.4 hours Start 2025.12.03 @ 23:22:17 End 2025.12.04 @ 00:19:58 Sessions 2 Manual Loads 0 Difficulty Rogue Special Mode None Game No. 13 Rogue 13 Adventurer 0 Explorer 0 Win Type - Total 0 Types 0/0/0/0/0/0/0/0/0/0 Lore% 18 Gallery% 20 Achievement% 19 Wizard Run 0 Options --------- Layout 1 ASCII 0 Keyboard 0 Movement Mouse Keybinds 0 Fullscreen 2 Font 24/Terminus Map View 50x35 Zoom Use 0% Tactical HUD 0 Map Filters NONE Filters NONE Steam 1 RUN: 733774fb-1dcf-41fc-b95a-0ddc7a047a19